bitfinex/quotes_ETHUSD_20250804
["timestamp","ask_amount","ask_price","bid_price","bid_amount"]
[1754330961926,0.9421,3687.4,3687.1,4.2992]
[1754330962269,0.4738,3687.3,3687.1,4.2992]
[1754330962387,0.4738,3687.2,3687.1,4.2992]
[1754330963093,0.4738,3687.2,3687.1,0.1352]
[1754330963295,0.4738,3687.2,3687.1,4.2992]
[1754330963498,0.4738,3687.2,3686.9,4.21]
[1754330963694,0.4738,3687.2,3686.8,0.4846]
[1754330963695,3.9421,3687.1,3686.8,0.1372]
[1754330963933,7.33334098,3687.0,3686.9,4.163]
[1754330964243,4.62104065,3687.0,3686.9,4.163]
[1754330964391,4.15274065,3687.0,3686.9,4.163]
[1754330964589,3.4738,3687.0,3686.9,4.163]
[1754330965495,3.0,3687.0,3686.9,4.163]
[1754330965697,5.71223216,3687.0,3686.9,4.163]
[1754330965907,6.18603216,3687.0,3686.8,0.002]
[1754330966109,3.4738,3687.0,3686.9,4.164]
[1754330968400,3.0,3687.0,3686.9,4.164]
[1754330968809,0.1352,3687.4,3686.9,4.6466]
[1754330969013,0.1352,3687.4,3687.0,3.19482741]
[1754330969210,0.1352,3687.4,3687.0,0.4826]
[1754330969432,3.4738,3687.7,3687.1,0.1352]
[1754330969433,0.25120658,3687.6,3687.1,0.1352]
[1754330969735,3.4738,3687.5,3687.2,4.164]
[1754330969908,0.72500658,3687.4,3687.1,0.1352]
[1754330970113,0.1352,3687.2,3687.0,4.164]
[1754330970310,0.4738,3687.1,3687.0,4.164]
[1754330970606,0.1352,3687.2,3687.0,4.6466]
[1754330970928,0.86015454,3687.2,3687.0,4.164]
[1754330971245,0.1352,3687.2,3687.0,4.6466]
[1754330971450,4.41515454,3687.7,3687.1,0.4826]
[1754330971648,3.0,3687.4,3687.1,0.4826]
[1754330971804,0.25115454,3687.3,3687.0,4.2992]
[1754330972006,0.25115454,3687.3,3687.1,0.4826]
[1754330972662,0.50770106,3687.2,3687.0,0.1352]
[1754330972977,6.63707873,3687.1,3687.0,0.1352]
[1754330973128,6.85435723,3687.1,3687.0,0.1352]
[1754330973328,2.71230573,3686.9,3686.8,0.002]
[1754330973554,5.71230573,3686.9,3686.8,0.002]
[1754330973934,6.65440573,3686.9,3686.8,0.002]
[1754330974325,7.64685398,3686.9,3686.8,0.002]
[1754330975430,8.033126,3686.9,3686.8,0.002]
[1754330975632,7.78205398,3686.9,3686.8,0.002]
[1754330976069,8.03312524,3686.9,3686.8,0.002]
[1754330976465,7.56482524,3686.9,3686.8,0.002]
[1754330976679,8.03312524,3686.9,3686.8,0.002]
[1754330978144,12.19712524,3686.9,3686.8,0.002]
[1754330979178,42.19712524,3686.9,3686.8,0.002]
[1754330979639,12.19712524,3686.9,3686.8,0.002]
[1754330979862,12.19712524,3686.9,3686.4,0.002]
[1754330979863,2.71260002,3686.5,3686.4,0.002]
[1754330980065,54.10390761,3686.5,3686.4,0.002]
[1754330980285,54.54380011,3686.5,3686.4,0.002]
[1754330980489,54.54380011,3686.5,3685.4,0.4826]
[1754330980490,2.71333604,3685.5,3685.4,0.4826]
[1754330980704,2.71333604,3685.5,3685.0,0.1372]
[1754330980705,2.71350017,3685.3,3685.0,0.1372]
[1754330980990,2.71350017,3685.3,3685.1,0.4826]
[1754330981146,0.4738,3685.5,3685.0,0.1372]
[1754330981351,5.71358137,3685.2,3685.0,0.002]
[1754330981672,3.1352,3685.3,3685.0,0.002]
[1754330981844,0.4738,3685.1,3685.0,0.002]
[1754330982045,0.4738,3685.2,3685.0,0.002]
[1754330982248,0.4738,3685.1,3685.0,0.002]
[1754330982846,3.4738,3685.1,3685.0,0.002]
[1754330983891,3.0,3685.1,3685.0,0.002]
[1754330984085,3.0,3685.1,3685.0,0.4846]
[1754330984294,2.84868567,3685.3,3685.0,0.4846]
[1754330984295,0.1352,3685.3,3685.0,0.4846]
[1754330984590,3.0,3685.6,3685.1,2.85458586]
[1754330984749,0.4738,3686.2,3685.2,0.4826]
[1754330984946,3.0,3686.0,3685.3,2.71342478]
[1754330985162,3.0,3686.0,3685.4,3.19599037]
[1754330985361,0.1352,3685.9,3685.3,2.71345369]
[1754330985564,0.1352,3685.9,3685.5,0.4826]
[1754330985763,3.0,3685.8,3685.5,0.4826]
[1754330985973,3.0,3685.8,3685.6,0.4826]
[1754330986376,3.0,3685.8,3685.2,2.8487102]
[1754330986581,3.0,3685.8,3685.7,0.4826]
[1754330987185,3.0,3685.9,3685.7,0.4826]
[1754330987423,0.1352,3686.1,3685.7,0.4826]
[1754330987712,3.0,3686.0,3685.7,3.19572906]
[1754330987867,3.0,3686.0,3685.6,0.1352]
[1754330987868,3.0,3686.0,3685.8,0.4801]
[1754330988063,2.84795598,3686.3,3685.9,0.4801]
[1754330988064,3.0,3686.2,3685.9,0.4801]
[1754330988295,3.0,3686.2,3685.7,2.71318825]
[1754330988471,3.0,3686.2,3685.6,0.1352]
[1754330988675,3.17380763,3686.1,3685.6,0.1352]
[1754330988875,0.4609,3686.1,3685.3,0.4801]
[1754330989199,3.0,3685.8,3685.4,0.1352]
[1754330989401,0.6186,3686.0,3685.4,0.1352]
[1754330989402,0.4609,3685.7,3685.4,0.1352]
[1754330989566,0.4609,3685.7,3685.4,0.6153]
[1754330990103,0.4609,3685.7,3685.5,0.4801]
[1754330990468,0.4609,3685.7,3685.4,0.1352]
[1754330990668,0.4609,3685.6,3685.4,0.1352]
[1754330991207,0.1352,3686.0,3685.5,3.19340106]
[1754330991507,0.1352,3686.2,3685.7,2.71314349]
[1754330991800,3.1352,3686.2,3685.8,0.4801]
[1754330992006,3.1352,3686.2,3685.5,7.15349076]
[1754330992204,3.1352,3686.2,3685.6,2.71326242]
[1754330992372,3.1352,3686.2,3685.7,0.4801]
[1754330992568,3.0,3686.2,3685.9,2.71298514]
[1754330992792,3.0,3686.3,3686.0,0.4801]
[1754330992976,3.0,3686.3,3685.8,0.1352]
[1754330993283,3.0,3686.3,3685.9,0.4801]
[1754330993487,3.0,3686.3,3686.0,0.4801]
[1754330994071,0.4609,3686.2,3685.8,0.1352]
[1754330994273,3.0,3686.3,3685.9,0.4801]
[1754330994677,3.0,3686.3,3685.8,0.1352]
[1754330994678,3.4609,3686.3,3686.0,0.4801]
[1754330994896,0.4609,3686.2,3685.8,0.1352]
[1754330995087,3.1352,3686.4,3685.9,2.71297001]
[1754330995446,4.164,3686.3,3686.0,3.32826033]
[1754330995716,3.0,3686.2,3686.0,0.1352]
[1754330995880,3.0,3686.2,3686.1,0.4801]
[1754330996085,7.164,3686.4,3686.1,0.4801]
[1754330996286,7.164,3686.4,3686.0,0.1352]
[1754330996287,0.4609,3686.3,3686.0,0.1352]
[1754330996585,3.19622101,3686.2,3685.8,0.1352]
[1754330997001,0.4609,3686.1,3685.8,0.1352]
[1754330997202,0.4609,3686.0,3685.8,0.1352]
[1754330997924,0.4609,3686.0,3685.8,0.6153]
[1754330999085,0.4609,3685.9,3685.8,0.1352]
[1754331000329,3.65734235,3685.9,3685.2,3.19362655]
[1754331000486,0.4609,3685.8,3685.2,4.6431]
[1754331000687,0.4609,3685.8,3685.2,4.7783]
[1754331000688,0.5961,3685.8,3685.2,4.7783]
[1754331001088,2.71319397,3685.7,3685.2,4.7783]
[1754331001520,0.4609,3685.6,3685.3,0.002]
[1754331002126,0.1352,3686.0,3685.4,0.6153]
[1754331002383,2.7130508,3685.9,3685.5,0.4801]
[1754331002518,2.7130508,3685.9,3685.4,0.1352]
[1754331002519,3.0,3685.9,3685.4,0.1352]
[1754331002719,3.4609,3685.9,3685.6,0.4801]
[1754331003227,0.4609,3685.9,3685.5,2.71328576]
[1754331003427,0.1352,3686.0,3685.7,0.4801]
[1754331003629,3.0,3685.9,3685.8,0.4801]
[1754331003940,0.1352,3686.0,3685.8,0.4801]
[1754331005193,0.5961,3686.0,3685.8,0.4801]
[1754331005642,0.1352,3686.0,3685.7,2.71311866]
[1754331005790,3.1352,3686.3,3685.8,3.19320848]
[1754331005990,0.1352,3686.3,3685.9,0.4801]
[1754331006196,0.1352,3686.3,3685.8,2.71310848]
[1754331006527,3.001,3686.4,3686.1,0.1352]
[1754331006894,0.001,3686.4,3686.2,3.19290736]
[1754331007089,0.001,3686.4,3686.3,0.4801]
[1754331007296,0.001,3686.4,3686.3,3.52566386]
[1754331007505,0.001,3686.4,3686.3,3.80186386]
[1754331008620,0.001,3686.4,3686.3,3.66086386]
[1754331009335,0.001,3686.4,3686.3,3.32804719]
[1754331009500,0.001,3686.4,3686.3,7.49004719]
[1754331010462,0.001,3686.4,3686.3,4.7773]
[1754331011338,0.001,3686.4,3686.3,7.49004719]
[1754331012460,0.001,3686.4,3686.3,7.63104719]
[1754331012627,0.001,3686.4,3686.3,8.52444062]
[1754331012825,0.001,3686.4,3686.3,4.2972]
[1754331013058,0.4619,3686.4,3686.3,4.2972]
[1754331013923,3.17457361,3686.4,3686.3,0.1352]
[1754331014123,3.17457361,3686.4,3686.2,4.162]
[1754331014463,0.4609,3686.3,3686.2,4.162]
[1754331014880,0.001,3686.4,3686.2,4.162]
[1754331015357,0.001,3686.4,3686.2,4.6421]
[1754331016463,0.001,3686.4,3686.3,3.19284719]
[1754331016764,0.001,3686.4,3686.3,4.33620481]
[1754331017574,0.001,3686.4,3686.3,8.54620481]
[1754331017825,0.001,3686.4,3686.3,4.3452]
[1754331018022,0.442,3686.4,3686.3,4.3452]
[1754331018226,0.001,3686.4,3686.3,7.51134719]
[1754331020599,0.001,3686.4,3686.3,7.05794719]
[1754331021117,0.001,3686.4,3686.3,11.21894719]
[1754331021689,0.001,3686.4,3686.3,7.00894719]
[1754331021923,0.001,3686.4,3686.3,1.10737784]
[1754331022091,0.442,3686.4,3686.3,4.2962]
[1754331022822,0.001,3686.4,3686.3,7.46234719]
[1754331024327,0.001,3686.4,3686.3,7.00894719]
[1754331025235,0.001,3686.4,3686.3,4.2962]
[1754331025521,0.442,3686.4,3686.3,4.2962]
[1754331026141,0.442,3686.4,3686.3,4.16]
[1754331026302,0.9074,3686.4,3686.3,4.16]
[1754331026897,1.27278487,3686.4,3686.1,0.1352]
[1754331027099,2.71302344,3686.0,3685.5,0.002]
[1754331027303,0.1352,3686.1,3685.5,0.1372]
[1754331027522,2.84809441,3686.1,3685.6,4.16]
[1754331027703,0.9064,3686.0,3685.6,4.16]
[1754331027889,2.71313268,3685.8,3685.6,4.16]
[1754331028089,2.84809441,3686.1,3685.6,4.16]
[1754331028090,0.441,3685.7,3685.6,4.16]
[1754331028320,0.441,3685.7,3685.5,0.1372]
[1754331028321,0.441,3685.7,3685.5,2.85050754]
[1754331028533,0.4654,3686.0,3685.5,0.1372]
[1754331028833,0.441,3685.6,3685.5,2.85053604]
[1754331029123,0.441,3685.6,3685.5,0.1372]
[1754331029329,0.4654,3685.9,3685.5,2.85053604]
[1754331029629,0.1352,3686.1,3685.5,2.85053604]
[1754331029798,0.441,3685.8,3685.5,0.1372]
[1754331030004,3.61965874,3685.7,3685.5,0.1372]
[1754331030213,0.9064,3685.6,3685.5,0.1372]
[1754331030416,3.61966242,3685.6,3685.5,0.002]
[1754331031496,6.61966242,3685.6,3685.5,0.002]
[1754331031696,7.56646635,3685.6,3685.5,0.002]
[1754331032401,3.441,3685.6,3685.5,0.002]
[1754331033431,3.0,3685.6,3685.5,0.002]
[1754331033638,6.61966242,3685.6,3685.5,0.002]
[1754331033798,6.75486242,3685.6,3685.5,0.002]
[1754331034330,36.75486242,3685.6,3685.5,0.002]
[1754331034492,43.64352428,3685.6,3685.5,0.002]
[1754331036128,44.19352428,3685.6,3685.5,0.002]
[1754331037931,39.48352428,3685.6,3685.5,0.002]
[1754331038139,43.04292428,3685.6,3685.5,0.002]
[1754331038501,43.50832428,3685.6,3685.5,0.002]
[1754331038696,43.04292428,3685.6,3685.5,0.002]
[1754331039132,2.71340967,3685.4,3684.6,0.002]
[1754331039341,5.71392514,3684.7,3684.6,0.002]
[1754331039538,39.87392514,3684.7,3684.6,0.002]
[1754331039736,40.78032514,3684.7,3684.6,0.002]
[1754331041104,40.78032514,3684.7,3684.5,0.002]
[1754331041105,2.7139988,3684.6,3684.5,1e-08]
[1754331041459,5.71429346,3684.2,3684.1,1e-08]
[1754331041617,9.87429346,3684.2,3684.1,1e-08]
[1754331041941,41.46589346,3684.2,3684.1,1e-08]
[1754331043755,36.15529346,3684.2,3684.1,1e-08]
[1754331043956,9.87529346,3684.2,3684.1,1e-08]
[1754331044256,37.41424343,3684.2,3684.1,1e-08]
[1754331044552,42.59064343,3684.2,3684.1,1e-08]
[1754331046158,42.84057114,3684.2,3684.1,1e-08]
[1754331046933,38.21417114,3684.2,3684.1,1e-08]
[1754331047159,41.82517114,3684.2,3684.1,1e-08]
[1754331048026,37.66417114,3684.2,3684.1,1e-08]
[1754331048225,41.82617114,3684.2,3684.1,1e-08]
[1754331048559,41.38517114,3684.2,3684.1,1e-08]
[1754331049975,37.22317114,3684.2,3684.1,1e-08]
[1754331050269,11.38517114,3684.2,3684.1,0.45620001]
[1754331050840,8.67087768,3684.2,3684.1,0.45620001]
[1754331051236,10.12622117,3684.2,3684.1,0.45620001]
[1754331051582,10.12622117,3684.2,3684.1,1e-08]
[1754331052375,5.96422117,3684.2,3684.1,1e-08]
[1754331052535,10.12622117,3684.2,3684.1,1e-08]
[1754331053642,11.05272117,3684.2,3684.1,1e-08]
[1754331053840,12.70082904,3684.2,3684.1,1e-08]
[1754331054055,42.70082904,3684.2,3684.1,1e-08]
[1754331054253,42.23092904,3684.2,3684.1,1e-08]
[1754331054552,43.25082904,3684.2,3684.1,1e-08]
[1754331055678,59.86154661,3684.2,3684.1,1e-08]
[1754331056351,61.49054661,3684.2,3684.1,1e-08]
[1754331058176,64.34854661,3684.2,3684.1,1e-08]
[1754331058738,65.16458261,3684.2,3684.1,1e-08]
[1754331059442,2.71532529,3682.8,3682.7,4.227148]
[1754331059793,39.87732529,3682.8,3682.7,4.227148]
[1754331059941,40.33392529,3682.8,3682.7,4.227148]
[1754331060446,39.87732529,3682.8,3682.7,4.227148]
[1754331060877,39.87732529,3682.8,3682.7,4.683348]
[1754331061280,40.33392529,3682.8,3682.7,4.227148]
[1754331061482,39.87732529,3682.8,3682.7,4.683348]
[1754331061682,37.162,3682.8,3682.7,4.683348]
[1754331061885,39.87732529,3682.8,3682.7,4.683348]
[1754331063452,40.12720916,3682.8,3682.7,4.683348]
[1754331064069,40.12720916,3682.8,3682.7,4.227148]
[1754331064276,40.12720916,3682.8,3682.7,4.683348]
[1754331065189,7.163,3682.8,3682.7,4.683348]
[1754331065562,9.87832529,3682.8,3682.7,4.683348]
[1754331067266,7.41336906,3682.8,3682.7,4.683348]
[1754331067477,2.71489492,3683.4,3682.7,7.8672769]
[1754331067666,0.25038105,3683.3,3682.8,3.31451642]
[1754331068007,0.25038105,3683.3,3683.2,0.1352]
[1754331068173,0.25038105,3683.4,3683.2,0.1352]
[1754331068501,0.25038105,3683.4,3683.3,0.2850274]
[1754331068682,0.1352,3683.8,3683.4,2.71487108]
[1754331068886,0.25038105,3683.9,3683.5,3.31398701]
[1754331069195,0.25038105,3683.8,3683.6,0.5992]
[1754331069398,4.2982,3684.0,3683.3,3.13518392]
[1754331069399,0.25038105,3683.7,3683.4,2.71488298]
[1754331069564,0.1352,3684.0,3683.3,0.4202274]
[1754331069565,0.25038105,3683.9,3683.3,0.4202274]
[1754331069770,0.25038105,3683.8,3683.3,0.4202274]
[1754331070028,4.2992,3684.0,3683.3,0.4202274]
[1754331070029,0.25038105,3683.7,3683.4,0.5992]
[1754331070273,0.25038105,3683.6,3683.5,2.7147948]
[1754331070473,0.25038105,3683.6,3683.5,3.3139948]
[1754331070852,0.25038105,3683.6,3683.5,3.95891235]
[1754331071087,0.25038105,3683.6,3683.5,8.27106032]
[1754331071298,0.25038105,3683.6,3683.5,8.25711235]
[1754331074598,0.25038105,3683.6,3683.5,4.09411235]
[1754331074793,0.25038105,3683.6,3683.5,8.25711235]
[1754331077416,0.25038105,3684.1,3684.0,2.71444082]
[1754331077570,0.25038105,3684.1,3684.0,7.31318303]
[1754331077773,0.25038105,3684.1,3684.0,7.94538303]
[1754331078510,0.001,3684.2,3684.1,2.71436714]
[1754331078801,0.25224351,3684.2,3684.1,3.21136714]
[1754331079001,0.25224351,3684.2,3684.1,7.37336714]
[1754331079182,0.25224351,3684.2,3684.1,7.84190194]
[1754331079801,0.25224351,3684.2,3684.1,7.34490194]
[1754331080106,0.25224351,3684.2,3684.1,7.84190194]
[1754331082126,0.25224351,3684.2,3684.1,5.1275348]
[1754331082323,0.25224351,3684.2,3684.1,7.84190194]
[1754331084199,0.001,3684.2,3684.1,7.84190194]
[1754331084395,0.25221889,3684.2,3684.1,7.84190194]
[1754331085060,0.25221889,3684.2,3684.1,12.05190194]
[1754331085329,0.001,3684.2,3684.1,7.84190194]
[1754331085928,0.001,3684.2,3684.1,7.37236714]
[1754331086108,0.25221889,3684.2,3684.1,6.87536714]
[1754331086306,0.001,3684.2,3684.1,4.161]
[1754331086497,0.001,3684.2,3684.1,6.87536714]
[1754331086838,0.25221889,3684.2,3684.1,6.87536714]
[1754331087040,0.001,3684.2,3684.1,7.37236714]
[1754331089940,0.001,3684.2,3684.1,24.86317248]
[1754331090148,0.001,3684.6,3684.5,2.71407246]
[1754331090318,0.001,3684.6,3684.5,6.87507246]
[1754331090645,0.001,3684.6,3684.5,7.51507246]
[1754331090847,0.25121889,3686.0,3684.8,2.71385149]
[1754331091141,0.25121889,3686.0,3685.8,2.71310558]
[1754331091142,0.25115475,3686.0,3685.8,2.71310558]
[1754331091327,0.4701,3686.1,3685.9,4.161]
[1754331091328,0.72125475,3686.1,3685.9,4.161]
[1754331091640,3.43445573,3686.4,3685.9,4.161]
[1754331091841,0.4701,3686.0,3685.9,4.161]
[1754331092144,0.25115475,3686.2,3685.9,6.87403279]
[1754331092305,0.4701,3686.2,3685.9,6.87403279]
[1754331092645,0.25215475,3686.4,3686.0,2.71294168]
[1754331092948,0.25215475,3686.4,3686.2,2.71279205]
[1754331093256,0.001,3686.4,3686.3,4.16]
[1754331093466,0.001,3686.4,3686.3,6.87274719]
[1754331093628,0.001,3686.4,3686.3,7.36974719]
[1754331093953,0.001,3686.4,3686.3,4.657]
[1754331094154,0.001,3686.4,3686.3,4.67089641]
[1754331094908,0.001,3686.4,3686.3,7.3836436]
[1754331095110,0.001,3686.4,3686.3,4.7922]
[1754331095409,0.001,3686.4,3686.3,8.00409623]
[1754331097830,0.9407,3686.4,3685.7,0.497]
[1754331098030,3.65343236,3686.4,3685.8,4.16]
[1754331098274,0.72090576,3686.3,3685.8,4.16]
[1754331098431,0.25076859,3686.3,3685.8,4.16]
[1754331098774,2.71289438,3686.1,3686.0,0.1352]
[1754331098978,1.55445765,3686.1,3686.0,4.16]
[1754331099265,2.71304159,3685.9,3685.8,4.16]
[1754331099666,3.65274159,3685.9,3685.8,4.16]
[1754331101241,3.18264159,3685.9,3685.8,4.16]
[1754331101462,2.71298548,3686.0,3685.8,4.16]
[1754331101668,2.71304159,3685.9,3685.8,4.16]
[1754331102369,0.4701,3685.9,3685.8,4.16]
[1754331102532,3.18314159,3685.9,3685.8,4.16]
[1754331103470,2.71311519,3685.8,3685.7,0.1352]
[1754331103773,2.71311519,3685.8,3685.7,4.2942]
[1754331103774,3.65281519,3685.8,3685.7,4.2942]
[1754331104469,0.4701,3686.1,3685.7,4.2942]
[1754331104646,2.71284844,3686.2,3685.7,4.2942]
[1754331104838,3.4701,3686.2,3685.8,0.497]
[1754331105532,0.1352,3686.3,3685.8,1.02177127]
[1754331105739,0.001,3686.4,3685.7,4.2942]
[1754331105740,0.001,3686.4,3686.1,0.1352]
[1754331105958,2.96461225,3686.4,3686.2,4.159]
[1754331106241,2.96461225,3686.4,3686.2,8.369]
[1754331106242,1.19064654,3686.3,3686.2,8.369]
[1754331106445,0.001,3686.4,3686.2,8.369]
[1754331106665,0.001,3686.4,3686.3,3.20584434]
[1754331106847,0.001,3686.4,3686.3,4.78333193]
[1754331107059,0.001,3686.4,3686.3,3.32714719]
[1754331108241,0.001,3686.4,3686.3,3.3410436]
[1754331109777,0.001,3686.4,3686.3,7.6940436]
[1754331110085,0.001,3686.4,3686.3,7.53714719]
[1754331110457,0.001,3686.4,3686.3,7.68014719]
[1754331110784,0.001,3686.4,3686.3,9.13534506]
[1754331111891,0.001,3686.4,3686.3,8.99234506]
[1754331112893,0.001,3686.4,3686.3,7.53714719]
[1754331113191,0.001,3686.4,3686.3,11.21594719]
[1754331113582,0.001,3686.4,3686.3,11.69514719]
[1754331114580,0.001,3686.4,3686.3,11.83814719]
[1754331114782,0.001,3686.4,3686.3,11.69514719]
[1754331114970,0.001,3686.4,3686.3,13.13594506]
[1754331118207,0.001,3686.4,3686.3,13.27894506]
[1754331118374,0.001,3686.8,3686.7,2.71245287]
[1754331118568,0.001,3686.8,3686.7,6.88434193]
[1754331118783,0.001,3686.8,3686.7,7.48485287]
[1754331118996,0.001,3686.8,3686.7,7.87827696]
[1754331121499,0.001,3686.8,3686.7,3.72027696]
[1754331121673,0.4689,3686.8,3686.7,7.39807696]
[1754331122103,0.9448,3686.8,3686.7,7.39807696]
[1754331122417,0.001,3686.8,3686.7,7.39807696]
[1754331122675,0.001,3686.8,3686.7,7.87727696]
[1754331124316,0.001,3686.8,3686.7,12.08727696]
[1754331126016,0.001,3686.8,3686.7,11.60807696]
[1754331126438,0.001,3686.8,3686.7,7.45107696]
[1754331126588,0.4689,3686.8,3686.7,11.60807696]
[1754331126789,0.001,3686.8,3686.7,11.60807696]
[1754331126992,0.4689,3686.8,3686.7,11.60807696]
[1754331127690,0.9448,3686.8,3686.7,11.60807696]
[1754331127887,0.4689,3686.8,3686.7,7.00465287]
[1754331128526,0.001,3686.8,3686.7,7.00465287]
[1754331128826,0.4689,3686.8,3686.7,7.00465287]
[1754331129025,0.001,3686.8,3686.7,7.00465287]
[1754331129230,0.4689,3686.8,3686.7,7.00465287]
[1754331130761,0.001,3686.8,3686.7,7.00465287]
[1754331132224,0.9448,3686.8,3686.7,7.00465287]
[1754331132423,0.4689,3686.8,3686.7,7.00465287]
[1754331132920,0.4689,3686.8,3686.7,11.21465287]
[1754331134614,0.4689,3686.8,3686.7,7.05765287]
[1754331134822,0.9448,3686.8,3686.7,11.21365287]
[1754331135716,0.9448,3686.8,3686.7,7.05765287]
[1754331135921,0.9448,3686.8,3686.7,11.21365287]
[1754331136318,0.9448,3686.8,3686.7,0.1352]
[1754331136519,0.9448,3686.8,3686.7,4.2912]
[1754331136718,0.9448,3686.8,3686.7,7.00365287]
[1754331136920,0.9448,3686.8,3686.7,0.1352]
[1754331137123,0.9448,3686.8,3686.7,4.156]
[1754331137321,1.19697061,3686.8,3686.7,4.156]
[1754331137812,1.19697061,3686.8,3686.5,0.1352]
[1754331138014,0.9413,3686.7,3686.6,4.156]
[1754331138528,1.19354305,3686.7,3686.6,4.156]
[1754331139019,2.71252644,3686.6,3686.2,0.1352]
[1754331139172,0.25224305,3686.5,3686.3,4.156]
[1754331139373,2.96484522,3686.5,3686.3,4.156]
[1754331139574,0.9413,3686.4,3686.3,4.156]
[1754331140275,0.9413,3686.4,3686.2,0.1352]
[1754331140276,2.71274719,3686.3,3686.2,0.1352]
[1754331140498,0.9413,3686.3,3686.2,4.2912]
[1754331142727,3.9413,3686.3,3685.0,13.43867502]
[1754331143025,3.9413,3686.2,3685.6,0.1352]
[1754331143176,3.65414903,3686.2,3685.7,4.156]
[1754331143378,3.0,3686.0,3685.6,0.1352]
[1754331143583,5.71316467,3685.8,3685.7,4.156]
[1754331143783,6.65446467,3685.8,3685.7,4.156]
[1754331143984,5.71324189,3685.7,3685.2,0.1352]
[1754331144187,3.9413,3685.7,3685.3,4.156]
[1754331144542,0.4629,3685.6,3685.3,4.156]
[1754331144690,0.4784,3685.5,3685.3,4.156]
[1754331144889,0.9413,3685.4,3685.3,4.156]
[1754331145836,3.65472642,3685.4,3685.3,4.157]
[1754331146048,0.9413,3685.4,3685.3,4.157]
[1754331146338,0.9413,3685.4,3684.6,0.002]
[1754331146624,0.97521854,3685.3,3684.6,0.4709]
[1754331146828,0.1352,3685.2,3684.7,4.157]
[1754331146990,1.0765,3685.2,3684.7,4.157]
[1754331147187,5.71385149,3684.8,3684.7,4.157]
[1754331147386,6.17675149,3684.8,3684.7,4.157]
[1754331147585,6.65515149,3684.8,3684.7,4.157]
[1754331148335,5.84912514,3684.7,3684.6,0.002]
[1754331148492,0.1352,3684.7,3684.6,0.002]
[1754331148691,1.0765,3684.7,3684.6,0.002]
[1754331149524,6.79042514,3684.7,3684.6,0.002]
[1754331152814,10.94842514,3684.7,3684.6,0.002]
[1754331153306,12.56591501,3684.7,3684.6,0.002]
[1754331155020,3.84936341,3684.7,3684.6,0.002]
[1754331155227,3.5981,3684.7,3684.6,0.002]
[1754331155399,3.8487983,3684.7,3684.6,0.002]
[1754331155600,3.5981,3684.7,3684.6,0.002]
[1754331156427,6.31202514,3684.7,3684.6,0.002]
[1754331156640,3.5981,3684.7,3684.6,0.002]
[1754331157931,3.1352,3684.7,3684.6,0.002]
[1754331158248,0.1352,3684.7,3684.6,3.1929988]
[1754331158420,0.1352,3684.7,3684.6,1.90650809]
[1754331158617,0.5981,3684.7,3684.6,0.002]
[1754331158824,0.4629,3684.7,3684.6,0.002]
[1754331159426,3.4629,3685.0,3684.6,0.002]
[1754331159739,0.4629,3684.7,3684.6,0.002]
[1754331160464,0.5989,3684.7,3684.6,0.002]
[1754331160612,0.136,3684.7,3684.6,4.45013893]
[1754331160954,0.136,3684.7,3684.6,4.59313893]
[1754331161153,0.136,3684.7,3684.6,1.73614013]
[1754331161347,0.136,3684.7,3684.6,3.3281988]
[1754331162452,0.136,3684.7,3684.6,3.3421265]
[1754331162615,0.136,3684.7,3684.6,3.4851265]
[1754331162946,0.136,3684.7,3684.6,3.4711988]
[1754331163146,0.136,3684.7,3684.6,3.4851265]
[1754331163326,0.136,3684.7,3684.6,4.52084744]
[1754331164911,0.136,3684.7,3684.6,4.50691974]
[1754331165224,0.136,3684.7,3684.6,4.52084744]
[1754331165545,0.136,3684.7,3684.6,9.28084744]
[1754331165844,0.136,3684.7,3684.6,9.26691974]
[1754331166021,0.4629,3686.1,3685.7,2.71313837]
[1754331166226,0.4629,3686.1,3685.8,4.158]
[1754331166429,0.71325942,3686.1,3685.8,4.635]
[1754331166624,0.4629,3686.1,3685.8,7.34809347]
[1754331166830,0.71325942,3686.1,3685.8,7.34809347]
[1754331167151,0.4629,3686.1,3685.8,7.34809347]
[1754331167450,0.25035942,3686.1,3685.8,4.635]
[1754331167783,0.25035942,3686.2,3686.1,2.71289438]
[1754331167916,0.25035942,3686.5,3686.1,6.87089438]
[1754331168246,0.25035942,3686.4,3686.2,2.71276751]
[1754331168431,0.72215942,3686.3,3686.2,2.71282079]
[1754331168751,0.72215942,3686.6,3686.2,3.19652079]
[1754331168914,0.25035942,3686.5,3686.4,2.71267361]
[1754331169119,0.25035942,3686.5,3686.4,4.2932]
[1754331169547,0.72215942,3686.5,3686.4,4.2932]
[1754331170353,0.25035942,3686.7,3686.4,4.2932]
[1754331170516,0.4718,3686.7,3686.4,4.2932]
[1754331170855,6.64533566,3686.6,3686.5,4.157]
[1754331171152,6.89569508,3686.6,3686.5,4.157]
[1754331171320,4.18315942,3686.6,3686.5,4.157]
[1754331171723,3.72215942,3686.6,3686.5,4.157]
[1754331173256,3.0,3686.5,3686.1,0.1352]
[1754331173471,0.25130024,3686.4,3686.2,4.157]
[1754331173761,0.4718,3686.4,3686.2,4.157]
[1754331174058,0.4718,3686.3,3686.2,4.157]
[1754331175025,3.1354,3686.5,3686.3,2.71274719]
[1754331175026,0.25130024,3686.4,3686.3,2.71274719]
[1754331175244,0.1354,3686.5,3686.3,0.4837]
[1754331175875,0.1354,3686.5,3686.4,2.71267361]
[1754331176078,1e-08,3686.6,3686.5,2.71260002]
[1754331176278,0.001,3686.8,3686.7,2.71245287]
[1754331176428,1e-08,3686.8,3686.7,2.72634193]